bitfinex/quotes_BTCUSD_20250527
["timestamp","ask_amount","ask_price","bid_price","bid_amount"]
[1748371380234,0.2323725,109850.0,109840.0,0.348]
[1748371380453,0.2323725,109850.0,109840.0,0.94976608]
[1748371384608,0.2323725,109850.0,109840.0,0.348]
[1748371384831,0.2323725,109850.0,109840.0,0.94976608]
[1748371385055,0.2323725,109850.0,109840.0,0.348]
[1748371385270,0.30296824,109850.0,109840.0,0.348]
[1748371385495,0.2323725,109850.0,109840.0,0.348]
[1748371387002,0.2323725,109850.0,109840.0,0.344]
[1748371387204,0.2323725,109850.0,109840.0,0.342]
[1748371387825,0.2323725,109850.0,109840.0,0.343]
[1748371388251,0.2323725,109850.0,109840.0,0.341]
[1748371388481,0.2323725,109850.0,109840.0,0.002]
[1748371392015,1.03349338,109850.0,109840.0,0.002]
[1748371392229,1.03349338,109850.0,109840.0,0.01051736]
[1748371392440,1.03349338,109850.0,109840.0,0.01051742]
[1748371392651,1.03349338,109850.0,109840.0,0.00951297]
[1748371392862,1.12454733,109850.0,109840.0,0.00951306]
[1748371393066,0.23170897,109830.0,109820.0,0.002]
[1748371393273,0.52262897,109830.0,109820.0,0.01051299]
[1748371393451,0.52262897,109830.0,109820.0,0.002]
[1748371393897,0.52262897,109830.0,109820.0,0.01051306]
[1748371394314,0.52267822,109830.0,109820.0,0.01051306]
[1748371394518,0.52267822,109830.0,109820.0,0.01050806]
[1748371395697,0.52267822,109830.0,109820.0,0.01050455]
[1748371396133,0.52267822,109830.0,109820.0,0.01050451]
[1748371396547,0.52267822,109830.0,109820.0,0.01900647]
[1748371396760,0.52267822,109830.0,109820.0,0.01050196]
[1748371397800,0.52267822,109830.0,109820.0,0.01049995]
[1748371398350,0.52267822,109830.0,109820.0,0.01016694]
[1748371398566,0.52267822,109830.0,109820.0,0.01016533]
[1748371399492,0.23175822,109830.0,109820.0,0.01016533]
[1748371399704,0.52203822,109830.0,109820.0,0.01016533]
[1748371400179,0.52203822,109830.0,109820.0,0.01016406]
[1748371400387,0.52203822,109830.0,109820.0,0.95193014]
[1748371401431,0.52203822,109830.0,109820.0,0.95192864]
[1748371401576,0.23175822,109830.0,109820.0,0.95192864]
[1748371401776,0.2094632,109830.0,109820.0,1.23420442]
[1748371402029,0.19125383,109830.0,109820.0,1.03448702]
[1748371402700,0.19125383,109830.0,109820.0,1.22570901]
[1748371402907,0.19125383,109830.0,109820.0,1.03448702]
[1748371403511,0.19125383,109830.0,109820.0,1.21660321]
[1748371403741,0.20035856,109830.0,109820.0,1.26521432]
[1748371403940,0.20035856,109830.0,109820.0,1.27431963]
[1748371404144,0.20035856,109830.0,109820.0,1.25610885]
[1748371404387,4.925e-05,109830.0,109820.0,1.94098088]
[1748371404605,4.925e-05,109830.0,109820.0,1.9500861]
[1748371404951,0.00915348,109830.0,109820.0,1.9500861]
[1748371405961,4.925e-05,109830.0,109820.0,1.34765303]
[1748371406179,4.925e-05,109830.0,109820.0,1.94941911]
[1748371406396,4.925e-05,109830.0,109820.0,2.55118519]
[1748371406614,0.002,109850.0,109840.0,1.43512305]
[1748371406615,0.22047806,109850.0,109840.0,1.43512305]
[1748371406823,0.22097302,109850.0,109840.0,1.526177]
[1748371407245,0.2118702,109850.0,109840.0,1.526177]
[1748371407457,0.2118702,109850.0,109840.0,1.55348]
[1748371407672,0.2118702,109850.0,109840.0,1.56258373]
[1748371407890,0.2128702,109850.0,109840.0,1.56258373]
[1748371409046,0.0409069,109850.0,109840.0,1.5716873]
[1748371409281,0.00449463,109850.0,109840.0,1.90258373]
[1748371409495,0.0409059,109850.0,109840.0,1.90258373]
[1748371409675,0.0409059,109850.0,109840.0,1.9116873]
[1748371410906,0.00449463,109850.0,109840.0,1.9116873]
[1748371411123,0.03180342,109850.0,109840.0,1.9116873]
[1748371412186,0.22297319,109850.0,109840.0,1.9116873]
[1748371412706,0.02270027,109850.0,109840.0,1.9116873]
[1748371412911,0.01359737,109850.0,109840.0,1.9116873]
[1748371413118,0.03180342,109850.0,109840.0,1.9116873]
[1748371413521,0.2229731,109850.0,109840.0,1.9116873]
[1748371413727,0.03990665,109850.0,109840.0,1.9116873]
[1748371413941,0.03890665,109850.0,109840.0,1.9126873]
[1748371414421,0.03890665,109850.0,109840.0,1.9136873]
[1748371414804,0.2209731,109850.0,109840.0,1.88637619]
[1748371415184,0.21187036,109850.0,109840.0,1.90458407]
[1748371416303,0.21187036,109850.0,109840.0,1.87328407]
[1748371417116,0.21187036,109850.0,109840.0,1.88858407]
[1748371417322,0.21187036,109850.0,109840.0,1.90478407]
[1748371418133,0.21187036,109850.0,109840.0,0.70125191]
[1748371418336,0.21187036,109850.0,109840.0,1.90478407]
[1748371419691,0.21187036,109850.0,109840.0,1.91388788]
[1748371423943,0.20276746,109850.0,109840.0,1.87948017]
[1748371424166,0.20276746,109850.0,109840.0,1.87328407]
[1748371424369,0.20276746,109850.0,109840.0,1.66388911]
[1748371424583,0.20876431,109850.0,109840.0,0.64243997]
[1748371424796,0.20876431,109850.0,109840.0,1.2533102]
[1748371425022,0.20876431,109850.0,109840.0,1.85507628]
[1748371425225,0.19366431,109850.0,109840.0,1.85507628]
[1748371426076,0.18456108,109850.0,109840.0,1.85507628]
[1748371426524,0.18456108,109850.0,109840.0,1.66388911]
[1748371426769,0.18456108,109850.0,109840.0,1.50597213]
[1748371427410,0.20086108,109850.0,109840.0,1.50597213]
[1748371428128,0.20086108,109850.0,109840.0,1.51507628]
[1748371428758,0.18456108,109850.0,109840.0,1.51507628]
[1748371428961,0.18456108,109850.0,109840.0,1.53328432]
[1748371429170,0.03890699,109850.0,109840.0,1.5514917]
[1748371429381,0.22097344,109850.0,109840.0,1.55149178]
[1748371430851,0.22097344,109850.0,109840.0,1.5514912]
[1748371431259,0.22097344,109850.0,109840.0,1.54238763]
[1748371431478,0.02980367,109850.0,109840.0,1.5514912]
[1748371431628,0.0389069,109850.0,109840.0,1.5514912]
[1748371431836,0.22097335,109850.0,109840.0,1.54238763]
[1748371432178,0.21806763,109850.0,109840.0,0.72212303]
[1748371432386,0.23306763,109850.0,109840.0,0.72212303]
[1748371439206,0.23306763,109850.0,109840.0,1.06212303]
[1748371440473,0.23306763,109850.0,109840.0,0.46035695]
[1748371440710,0.52274763,109850.0,109840.0,0.46035695]
[1748371440953,0.5734434,109850.0,109840.0,0.342]
[1748371441386,0.52274763,109850.0,109840.0,0.342]
[1748371441840,0.52274763,109850.0,109840.0,0.002]
[1748371441841,0.53728848,109850.0,109840.0,0.002]
[1748371442137,1.23010851,109850.0,109840.0,0.002]
[1748371442380,1.23929488,109850.0,109840.0,0.002]
[1748371442614,0.6375288,109850.0,109840.0,0.001]
[1748371442830,0.6375288,109850.0,109820.0,0.60176608]
[1748371442831,0.20030897,109830.0,109820.0,0.60176608]
[1748371443055,0.22172183,109820.0,109810.0,0.97824805]
[1748371443683,0.22172183,109820.0,109810.0,0.63824805]
[1748371443899,0.22172183,109820.0,109810.0,0.97824805]
[1748371444560,0.22172183,109820.0,109810.0,0.37648197]
[1748371444767,0.22172183,109820.0,109810.0,0.97924805]
[1748371446392,0.22272183,109820.0,109810.0,0.97824805]
[1748371446617,0.22372183,109820.0,109810.0,0.97824805]
[1748371449102,0.51344183,109820.0,109810.0,0.97824805]
[1748371449327,0.51344183,109820.0,109810.0,0.97756908]
[1748371449547,0.51344183,109820.0,109810.0,0.375803]
[1748371449756,0.51344183,109820.0,109810.0,0.97756908]
[1748371449963,0.51344183,109820.0,109810.0,0.96907808]
[1748371450179,0.51344183,109820.0,109810.0,0.97756934]
[1748371450420,0.51344183,109820.0,109810.0,0.37580326]
[1748371450637,0.51344183,109820.0,109810.0,0.03580292]
[1748371451282,0.59218397,109820.0,109810.0,0.00849092]
[1748371451499,0.51344183,109820.0,109810.0,0.00849092]
[1748371451713,0.22173924,109810.0,109800.0,4.03381381]
[1748371451924,0.22173924,109810.0,109800.0,4.73512231]
[1748371452141,0.22173924,109810.0,109800.0,4.73512224]
[1748371452350,0.22173924,109810.0,109800.0,4.76243524]
[1748371452526,0.22173924,109810.0,109800.0,4.76243297]
[1748371453034,0.22223357,109810.0,109800.0,4.76243297]
[1748371453514,0.20783357,109810.0,109800.0,4.76243297]
[1748371453720,0.20783357,109810.0,109800.0,4.76243118]
[1748371453937,0.19173357,109810.0,109800.0,4.76243118]
[1748371454369,0.48145357,109810.0,109800.0,4.76243118]
[1748371454594,0.49055995,109810.0,109800.0,4.76243118]
[1748371454824,0.49055995,109810.0,109800.0,5.56456129]
[1748371454825,0.4996665,109810.0,109800.0,5.56456129]
[1748371455251,0.4996665,109810.0,109800.0,5.57366743]
[1748371455485,0.00049433,109810.0,109800.0,7.26402328]
[1748371455715,0.00910464,109830.0,109800.0,8.90763328]
[1748371455933,0.20941362,109830.0,109820.0,1.15849313]
[1748371456163,0.21851835,109830.0,109820.0,1.1584933]
[1748371456383,0.0091044,109830.0,109820.0,1.4573158]
[1748371456561,0.02731377,109830.0,109820.0,1.54836975]
[1748371457049,0.03641875,109830.0,109820.0,1.54837025]
[1748371457263,0.21851835,109830.0,109820.0,1.55747556]
[1748371457693,0.02731377,109830.0,109820.0,1.56658078]
[1748371458339,0.03641866,109830.0,109820.0,1.56658078]
[1748371458564,0.03641866,109830.0,109820.0,1.56758078]
[1748371459009,0.03641866,109830.0,109820.0,1.56858078]
[1748371459665,0.21851826,109830.0,109820.0,1.55947556]
[1748371459879,0.21851826,109830.0,109820.0,1.55037025]
[1748371460095,0.22762324,109830.0,109820.0,1.55037025]
[1748371461014,0.22762324,109830.0,109820.0,1.53497025]
[1748371461888,0.22762324,109830.0,109820.0,1.56227625]
[1748371462526,0.21851884,109830.0,109820.0,1.56227625]
[1748371462988,0.18406645,109850.0,109840.0,0.18208302]
[1748371463217,0.002,109850.0,109840.0,2.76588361]
[1748371463451,0.02020555,109850.0,109840.0,2.56939356]
[1748371463675,0.0293087,109850.0,109840.0,2.59669356]
[1748371464106,0.02930862,109850.0,109840.0,2.59669356]
[1748371464385,0.02939861,109850.0,109840.0,2.59669356]
[1748371464595,0.02029554,109850.0,109840.0,2.59669356]
[1748371464811,0.02939861,109850.0,109840.0,2.59669356]
[1748371465266,0.02229554,109850.0,109840.0,2.59669356]
[1748371465499,0.01119256,109850.0,109840.0,2.59669356]
[1748371465963,0.02939837,109850.0,109840.0,1.35807071]
[1748371466181,0.02939837,109850.0,109840.0,2.56160287]
[1748371466406,0.02029538,109850.0,109840.0,2.56160287]
[1748371466636,0.00208999,109850.0,109840.0,2.56160287]
[1748371467094,0.00208999,109850.0,109840.0,2.25669356]
[1748371468047,0.00208999,109850.0,109840.0,2.59669356]
[1748371468261,0.01119256,109850.0,109840.0,2.59669356]
[1748371468937,0.00208999,109850.0,109840.0,2.59669356]
[1748371469625,0.00208999,109850.0,109840.0,2.59769356]
[1748371469862,0.00208999,109850.0,109840.0,2.59869356]
[1748371470323,0.01119264,109850.0,109840.0,2.59869356]
[1748371470977,0.02029538,109850.0,109840.0,2.59869356]
[1748371471204,0.01119264,109850.0,109840.0,2.59869356]
[1748371471420,0.02029546,109850.0,109840.0,2.88833356]
[1748371472513,0.02029546,109850.0,109840.0,3.18763356]
[1748371476055,0.02939836,109850.0,109840.0,3.18763356]
[1748371476492,0.03850135,109850.0,109840.0,1.9841014]
[1748371476739,0.2205678,109850.0,109840.0,1.40257395]
[1748371476969,0.2205678,109850.0,109840.0,1.83574103]
[1748371476970,0.23396258,109850.0,109840.0,1.83574103]
[1748371477409,0.23396258,109850.0,109840.0,1.82340003]
[1748371477632,0.23396258,109850.0,109840.0,1.48340003]
[1748371478089,0.23396258,109850.0,109840.0,1.36142003]
[1748371478580,0.23396258,109850.0,109840.0,1.06212003]
[1748371480035,0.23396258,109850.0,109840.0,0.46035395]
[1748371480242,0.23396258,109850.0,109840.0,1.06212003]
[1748371482057,0.23396258,109850.0,109840.0,0.97106608]
[1748371482289,0.23396258,109850.0,109840.0,0.94376608]
[1748371487180,0.23396258,109850.0,109840.0,0.97107008]
[1748371488550,0.23396258,109850.0,109840.0,1.06212403]
[1748371489888,0.20236258,109850.0,109840.0,1.864181]
[1748371491487,0.20236258,109850.0,109840.0,2.758324]
[1748371491872,0.20236258,109850.0,109840.0,2.76742773]
[1748371492636,0.20236258,109850.0,109840.0,2.75832409]
[1748371493390,0.20236258,109850.0,109840.0,2.66386982]
[1748371493599,0.2114659,109850.0,109840.0,2.66386982]
[1748371494845,0.2114659,109850.0,109840.0,2.67297347]
[1748371495059,0.02939862,109850.0,109840.0,2.68207704]
[1748371495292,0.00208999,109850.0,109840.0,3.00189704]
[1748371495496,0.02029554,109850.0,109840.0,3.44851904]
[1748371495712,0.02029546,109850.0,109840.0,2.01799596]
[1748371495927,0.01119264,109850.0,109840.0,2.01799596]
[1748371496165,0.02029554,109850.0,109840.0,2.01799596]
[1748371496380,0.02029546,109850.0,109840.0,2.41747496]
[1748371496839,0.02029546,109850.0,109840.0,3.01924104]
[1748371497462,0.02029546,109850.0,109840.0,3.12013304]
[1748371497670,0.02029546,109850.0,109840.0,2.83061304]
[1748371497897,0.02029546,109850.0,109840.0,2.70062304]
[1748371498110,0.02029554,109850.0,109840.0,2.70062304]
[1748371499198,0.01119264,109850.0,109840.0,2.70062304]
[1748371499419,0.02029546,109850.0,109840.0,3.27328504]
[1748371500552,0.02029546,109850.0,109840.0,3.31708504]
[1748371500756,0.02029546,109850.0,109840.0,3.48151804]
[1748371500977,0.02029546,109850.0,109840.0,1.89149204]
[1748371501191,0.02029546,109850.0,109840.0,3.48151804]
[1748371501398,0.02029546,109850.0,109840.0,3.50641604]
[1748371501602,0.02029546,109850.0,109840.0,3.43692604]
[1748371502044,0.02029546,109850.0,109840.0,3.47572604]
[1748371502251,0.02029546,109850.0,109840.0,3.43692604]
[1748371502457,0.02029546,109850.0,109840.0,4.25302604]
[1748371502664,0.02939836,109850.0,109840.0,1.89149204]
[1748371502872,0.02939836,109850.0,109840.0,4.25077704]
[1748371503709,0.01119264,109850.0,109840.0,4.25077704]
[1748371503926,0.02939828,109850.0,109840.0,4.45691104]
[1748371504150,0.03850135,109850.0,109840.0,3.33656104]
[1748371504356,0.02939828,109850.0,109840.0,4.22319404]
[1748371504578,0.02939828,109850.0,109840.0,4.22321404]
[1748371504783,0.02939828,109850.0,109840.0,4.22230704]
[1748371504784,0.03850143,109850.0,109840.0,4.22230704]
[1748371505002,0.03850143,109850.0,109840.0,4.52160704]
[1748371505215,0.03850135,109850.0,109840.0,4.52160704]
[1748371505423,0.03850135,109850.0,109840.0,4.22914204]
[1748371505623,0.03850135,109850.0,109840.0,4.22912204]
[1748371506046,0.02939828,109850.0,109840.0,3.58225596]
[1748371506256,0.03850143,109850.0,109840.0,3.58225596]
[1748371506486,0.03850135,109850.0,109840.0,3.81625596]
[1748371506707,0.03850135,109850.0,109840.0,3.81627596]
[1748371506945,0.03850135,109850.0,109840.0,1.58902596]
[1748371507239,0.03850135,109850.0,109840.0,3.57125996]
[1748371508057,0.0476045,109850.0,109840.0,3.57429996]
[1748371508268,0.03850135,109850.0,109840.0,3.57429996]
[1748371508491,0.03850135,109850.0,109840.0,4.17606604]
[1748371508712,0.02939828,109850.0,109840.0,4.17606604]
[1748371508996,0.03850135,109850.0,109840.0,5.99221004]
[1748371509199,0.03850135,109850.0,109840.0,4.89677104]
[1748371509410,0.03850135,109850.0,109840.0,4.84599904]
[1748371509825,0.0476045,109850.0,109840.0,4.77762404]
[1748371510034,0.0476045,109850.0,109840.0,3.80769504]
[1748371510251,0.22967153,109850.0,109840.0,3.00220896]
[1748371510477,0.23356282,109850.0,109840.0,0.12035795]
[1748371510688,0.52300282,109850.0,109840.0,0.09305395]
[1748371510903,0.56582508,109850.0,109840.0,0.002]
[1748371511365,0.52300282,109850.0,109840.0,0.002]
[1748371511580,0.52300282,109850.0,109840.0,0.001]
[1748371513020,0.222387,109840.0,109830.0,0.94176608]
[1748371514052,0.2162909,109840.0,109830.0,1.22402452]
[1748371514262,0.2162909,109840.0,109830.0,1.24223389]
[1748371514498,0.22539505,109840.0,109830.0,1.24323389]
[1748371514703,0.22539505,109840.0,109830.0,1.24323406]
[1748371514829,0.24059505,109840.0,109830.0,1.25333854]
[1748371515242,0.24059505,109840.0,109830.0,1.24423406]
[1748371515455,0.24059505,109840.0,109830.0,1.25333862]
[1748371516711,0.24059505,109840.0,109830.0,1.2624431]
[1748371516946,0.24059505,109840.0,109830.0,1.2533387]
[1748371517562,0.23149115,109840.0,109830.0,1.2533387]
[1748371518444,0.23149115,109840.0,109830.0,1.26244326]
[1748371519128,0.23149115,109840.0,109830.0,1.28974726]
[1748371519821,0.23149115,109840.0,109830.0,1.27153806]
[1748371520038,0.22238717,109840.0,109830.0,1.27153806]
[1748371521831,0.22238717,109840.0,109830.0,1.2806427]
[1748371522282,0.22238717,109840.0,109830.0,1.27153806]
[1748371522917,0.50455644,109850.0,109840.0,0.34]
[1748371523125,0.50455644,109850.0,109840.0,0.94176608]
[1748371524742,0.21515644,109850.0,109840.0,1.03282003]
[1748371530017,0.21515644,109850.0,109840.0,0.34]
[1748371532240,0.222087,109840.0,109830.0,0.62907008]
[1748371532421,0.222087,109840.0,109830.0,0.72012403]
[1748371532990,0.222087,109840.0,109830.0,0.91132861]
[1748371533206,0.222087,109840.0,109830.0,0.69282003]
[1748371533408,0.222087,109840.0,109830.0,0.69382003]
[1748371533611,0.222087,109840.0,109830.0,0.69482003]
[1748371534194,0.2311909,109840.0,109830.0,0.87691963]
[1748371534428,0.23119073,109840.0,109830.0,0.89512916]
[1748371534658,0.23466224,109850.0,109840.0,0.20029089]
[1748371534876,0.23466282,109850.0,109840.0,0.89311109]
[1748371535081,0.22555967,109850.0,109840.0,0.69282003]
[1748371538668,0.22555967,109850.0,109840.0,0.60176608]
[1748371544506,0.22555967,109850.0,109840.0,0.60099393]
[1748371546415,0.222887,109840.0,109830.0,0.62906908]
[1748371546626,0.222887,109840.0,109830.0,0.72012303]
[1748371548479,0.222887,109840.0,109830.0,0.72112303]
[1748371549114,0.222887,109840.0,109830.0,0.72212303]
[1748371555025,0.222887,109840.0,109830.0,0.09305395]
[1748371555243,0.26359134,109840.0,109830.0,0.002]
[1748371555458,0.55275134,109840.0,109830.0,0.002]
[1748371555667,0.512047,109840.0,109830.0,0.002]
[1748371555893,1.56003393,109840.0,109830.0,0.002]
[1748371556135,0.23174546,109810.0,109800.0,4.03371272]
[1748371556369,0.61254546,109810.0,109800.0,4.03371272]
[1748371556597,0.23174546,109810.0,109800.0,4.03371272]
[1748371556815,0.01821269,109810.0,109800.0,5.23724488]
[1748371557049,0.20945201,109810.0,109800.0,5.34379883]
[1748371557570,0.20034579,109810.0,109800.0,5.34394698]
[1748371557832,0.20034579,109810.0,109800.0,4.7421809]
[1748371558039,0.20034579,109810.0,109800.0,5.34394698]
[1748371558254,0.20034579,109810.0,109800.0,4.7421809]
[1748371558681,0.20034579,109810.0,109800.0,5.3777279]
[1748371558888,0.20034579,109810.0,109800.0,5.3618599]
[1748371559097,0.20034579,109810.0,109800.0,5.55311672]
[1748371559542,0.20945242,109810.0,109800.0,6.19089715]
[1748371559767,0.20945242,109810.0,109800.0,6.53089731]
[1748371560209,0.20034595,109810.0,109800.0,6.5217901]
[1748371561345,0.20034595,109810.0,109800.0,6.8210901]
[1748371562842,0.20034595,109810.0,109800.0,6.83019731]
[1748371563051,0.20034595,109810.0,109800.0,6.82100459]
[1748371563700,0.19123694,109820.0,109810.0,0.52213277]
[1748371563944,0.01820937,109830.0,109820.0,0.20943286]
[1748371564165,0.01820937,109830.0,109820.0,3.59098805]
[1748371564166,0.20030897,109830.0,109820.0,3.59098805]
[1748371564385,0.20030897,109830.0,109820.0,3.19742305]
[1748371564600,0.20941369,109830.0,109820.0,1.96339202]
[1748371564837,0.20030913,109830.0,109820.0,1.95709774]
[1748371565052,0.20030913,109830.0,109820.0,1.70140305]
[1748371565265,0.20030913,109830.0,109820.0,1.87441352]
[1748371565481,0.20030913,109830.0,109820.0,1.69229733]
[1748371565482,0.19120449,109830.0,109820.0,1.69229733]
[1748371565696,0.19120449,109830.0,109820.0,1.81182032]
[1748371565917,0.19320449,109830.0,109820.0,1.81182032]
[1748371566957,0.19320449,109830.0,109820.0,1.82092604]
[1748371567993,0.19320449,109830.0,109820.0,1.80271452]
[1748371568150,0.19320449,109830.0,109820.0,1.81182032]
[1748371568525,0.19320449,109830.0,109820.0,1.82092604]
[1748371569030,0.20230913,109830.0,109820.0,1.83003168]
[1748371569236,0.21141411,109830.0,109820.0,1.83003168]
[1748371570075,0.20941411,109830.0,109820.0,1.83913724]
[1748371570422,0.20941411,109830.0,109820.0,1.84113724]
[1748371570743,0.22531411,109830.0,109820.0,1.84113724]
[1748371570945,0.22531411,109830.0,109820.0,1.85024271]
[1748371571755,0.01820953,109830.0,109820.0,1.85024222]
[1748371571969,0.20941411,109830.0,109820.0,1.85024222]
[1748371572200,0.20941411,109830.0,109820.0,1.8502423]
[1748371572910,0.20941411,109830.0,109820.0,1.84113691]
[1748371573129,0.22571411,109830.0,109820.0,1.84113691]
[1748371573528,0.22571411,109830.0,109820.0,1.8502423]
[1748371574444,0.22571411,109830.0,109820.0,1.83203144]
[1748371574654,0.22571411,109830.0,109820.0,1.84113691]
[1748371575499,0.22571411,109830.0,109820.0,1.82292588]
[1748371575909,0.21660947,109830.0,109820.0,1.83203144]
[1748371577209,0.21660947,109830.0,109820.0,1.84113683]
[1748371577708,0.21660947,109830.0,109820.0,1.84113691]
[1748371578461,0.21660947,109830.0,109820.0,1.8502423]
[1748371578669,0.21660947,109830.0,109820.0,1.85024189]
[1748371579090,0.21660947,109830.0,109820.0,1.84113658]
[1748371579723,0.50300302,109840.0,109820.0,1.83203028]
[1748371579933,0.50300302,109840.0,109830.0,0.69282003]
[1748371580146,0.21408302,109840.0,109830.0,0.69282003]
[1748371580386,0.21408302,109840.0,109830.0,0.72012503]
[1748371580801,0.21408302,109840.0,109830.0,0.91132961]
[1748371581226,0.19858302,109840.0,109830.0,0.91132961]
[1748371581436,0.001,109840.0,109830.0,2.75281762]
[1748371581642,0.02020705,109840.0,109830.0,2.15105154]
[1748371582282,0.24540193,109840.0,109830.0,2.12968231]
[1748371582505,0.05421476,109840.0,109830.0,1.56157052]
[1748371582687,0.06331874,109840.0,109830.0,1.56156994]
[1748371583369,0.06431874,109840.0,109830.0,1.56156994]
[1748371583861,0.24640176,109840.0,109830.0,1.56156994]
[1748371584030,0.23729836,109840.0,109830.0,1.5524657]
[1748371584276,0.25129836,109840.0,109830.0,1.56157026]
[1748371584674,0.06921534,109840.0,109830.0,1.56156977]
[1748371585025,0.05421534,109840.0,109830.0,1.86086977]
[1748371586202,0.0111034,109840.0,109830.0,3.09147585]
[1748371586450,0.0111034,109840.0,109830.0,3.10717585]
[1748371586666,0.0293107,109840.0,109830.0,2.50540977]
[1748371586908,0.0384146,109840.0,109830.0,2.50540977]
[1748371587135,0.0293107,109840.0,109830.0,2.48970977]
[1748371587374,0.03841468,109840.0,109830.0,2.48970977]
[1748371587830,0.0293107,109840.0,109830.0,2.48970977]
[1748371588953,0.02020697,109840.0,109830.0,2.48970977]
[1748371589156,0.0293107,109840.0,109830.0,2.48970977]
[1748371589572,0.0293107,109840.0,109830.0,2.20086977]
[1748371589796,0.03841468,109840.0,109830.0,2.20086977]
[1748371590005,0.05441468,109840.0,109830.0,2.20086977]
[1748371590414,0.07961874,109840.0,109830.0,2.20086977]
[1748371590633,0.07051468,109840.0,109830.0,2.20086977]
[1748371590850,0.05441468,109840.0,109830.0,2.20086977]
[1748371591272,0.2525977,109840.0,109830.0,2.20086977]
[1748371591474,0.07961949,109840.0,109830.0,2.20086977]
[1748371591685,0.24349521,109840.0,109830.0,2.07116361]
[1748371591962,0.24349521,109840.0,109830.0,2.08026842]
[1748371592193,0.22739521,109840.0,109830.0,2.10758186]
[1748371592431,0.22739521,109840.0,109830.0,2.09847746]
[1748371592666,0.03620804,109840.0,109830.0,2.09847738]
[1748371592895,0.22739521,109840.0,109830.0,2.08937298]
[1748371593406,0.04531219,109840.0,109830.0,2.08937298]
[1748371593644,0.22739521,109840.0,109830.0,2.08937298]
[1748371593848,0.04531119,109840.0,109830.0,2.09847738]
[1748371594092,0.04531111,109840.0,109830.0,2.09847738]
[1748371594327,0.02931111,109840.0,109830.0,2.09847738]
[1748371594854,0.22960217,109840.0,109830.0,2.09847738]
[1748371595057,0.02931111,109840.0,109830.0,2.09847738]
[1748371595263,0.03841509,109840.0,109830.0,2.09847738]
[1748371595886,0.02931111,109840.0,109830.0,1.79917738]
[1748371596291,0.02020721,109840.0,109830.0,1.79917738]
[1748371596491,0.02931102,109840.0,109830.0,1.79917738]
[1748371596903,0.02020721,109840.0,109830.0,1.79917738]
[1748371597276,0.02931119,109840.0,109830.0,1.79917738]
[1748371597496,0.04471119,109840.0,109830.0,1.79917738]
[1748371597841,0.05381509,109840.0,109830.0,1.79917738]
[1748371598729,0.04471111,109840.0,109830.0,1.79917738]
[1748371599479,0.05381509,109840.0,109830.0,1.79917738]
[1748371600188,0.04471111,109840.0,109830.0,1.79917738]
[1748371601003,0.02931078,109840.0,109830.0,1.79917738]
[1748371601223,0.02020705,109840.0,109830.0,1.79917738]
[1748371601430,0.002,109840.0,109830.0,2.41664346]
[1748371601635,0.01110357,109840.0,109830.0,2.41664346]
[1748371601811,0.01110348,109840.0,109830.0,2.41664346]
[1748371602315,0.002,109840.0,109830.0,1.79917738]
[1748371602535,0.002,109840.0,109830.0,2.40094346]
[1748371602741,0.01110348,109840.0,109830.0,2.40094346]
[1748371603534,0.002,109840.0,109830.0,6.62333246]
[1748371603742,0.002,109840.0,109830.0,5.96760046]
[1748371603945,0.002,109840.0,109830.0,5.26261646]
[1748371604121,0.002,109840.0,109830.0,4.64222246]
[1748371604322,0.002,109840.0,109830.0,4.62722246]
[1748371604521,0.002,109840.0,109830.0,4.95920446]
[1748371605641,0.002,109840.0,109830.0,4.63716946]
[1748371605822,0.01110348,109840.0,109830.0,4.63595512]
[1748371606275,0.002,109840.0,109830.0,4.59609412]
[1748371606477,0.01110348,109840.0,109830.0,4.59609412]
[1748371606892,0.01110348,109840.0,109830.0,4.65313012]
[1748371607076,0.0111034,109840.0,109830.0,4.65313012]
[1748371607316,0.002,109840.0,109830.0,4.65313012]
[1748371607739,0.002,109840.0,109830.0,4.66088912]
[1748371607953,0.002,109840.0,109830.0,4.67588912]
[1748371608808,0.002,109840.0,109830.0,5.72511512]
[1748371609026,0.002,109850.0,109840.0,0.20939446]
[1748371609236,0.002,109850.0,109840.0,5.33625962]
[1748371609455,0.002,109850.0,109840.0,5.38391257]
[1748371609893,0.002,109850.0,109840.0,5.60317957]
[1748371610344,0.006,109850.0,109840.0,5.60332772]
[1748371610806,0.006,109850.0,109840.0,1.82288872]
[1748371611024,0.006,109850.0,109840.0,6.01147772]
[1748371611726,0.006,109850.0,109840.0,6.44279772]
[1748371611971,0.006,109850.0,109840.0,6.99713172]
[1748371612235,0.004,109850.0,109840.0,6.99713172]
[1748371612715,0.004,109850.0,109840.0,6.99813172]
[1748371613177,0.002,109850.0,109840.0,6.99813172]
[1748371613441,0.002,109850.0,109840.0,6.99913172]
[1748371613933,0.002,109870.0,109860.0,1.15112244]
[1748371614179,0.002,109870.0,109860.0,6.02944144]
[1748371614423,0.002,109870.0,109860.0,6.99756547]
[1748371614703,0.002,109870.0,109860.0,6.42309239]
[1748371615913,0.02749934,109890.0,109880.0,0.54931824]
[1748371616153,0.0365986,109890.0,109880.0,4.56266835]
[1748371616402,0.04569802,109890.0,109880.0,4.85110835]
[1748371616849,0.03659877,109890.0,109880.0,4.85110835]
[1748371617329,0.02754871,109890.0,109880.0,4.86028787]
[1748371617555,0.0457478,109890.0,109880.0,3.85106587]
[1748371617783,0.02954871,109890.0,109880.0,3.85106587]
[1748371617993,0.04974764,109890.0,109880.0,3.85106587]
[1748371618205,0.04064805,109890.0,109880.0,3.85106587]
[1748371618446,0.04974764,109890.0,109880.0,3.85106587]
[1748371618664,0.04064805,109890.0,109880.0,3.85106587]
[1748371618878,0.04774756,109890.0,109880.0,3.85106587]
[1748371619106,0.03764813,109890.0,109880.0,3.85106587]
[1748371619321,0.03864813,109890.0,109880.0,3.85106587]
[1748371619550,0.02044945,109890.0,109880.0,3.85106587]
[1748371619760,0.00404945,109890.0,109880.0,3.85106587]
[1748371620193,0.02954887,109890.0,109880.0,3.85106587]
[1748371620418,0.03864838,109890.0,109880.0,3.85106587]
[1748371620635,0.02954887,109890.0,109880.0,3.85106587]
[1748371621068,0.02954879,109890.0,109880.0,3.85106587]
[1748371621512,0.02044945,109890.0,109880.0,3.85106587]
[1748371621749,0.00404945,109890.0,109880.0,3.85106587]
[1748371622230,0.00404945,109890.0,109880.0,6.89954687]
[1748371622670,0.00404945,109890.0,109880.0,6.91524687]
[1748371622884,0.00404945,109890.0,109880.0,6.89954687]
[1748371623965,0.00404945,109890.0,109880.0,6.91524687]
[1748371625752,0.00404945,109890.0,109880.0,6.92683387]
[1748371625968,0.02224813,109890.0,109880.0,6.92683387]
[1748371626181,0.01314871,109890.0,109880.0,6.92683387]
[1748371626862,0.00404945,109890.0,109880.0,6.92683387]
[1748371627062,0.01314871,109890.0,109880.0,6.92683387]
[1748371627272,0.01314871,109890.0,109880.0,2.18391087]
[1748371627479,0.01314871,109890.0,109880.0,6.58683387]
[1748371627905,0.00404945,109890.0,109880.0,6.58683387]
[1748371628553,0.01314871,109890.0,109880.0,4.03588187]